bitfinex-derivatives/quotes_SOLF0:USTF0_20220108
["timestamp","ask_amount","ask_price","bid_price","bid_amount"]
[1641638012687,12.156,147.45,147.38,27.66479]
[1641638014589,12.156,147.45,147.37,4.75428506]
[1641638014590,4.0,147.42,147.37,4.75428506]
[1641638014791,8.197,147.42,147.37,4.75428506]
[1641638014992,8.197,147.42,147.36,32.41907506]
[1641638016092,12.197,147.42,147.36,32.41907506]
[1641638017297,8.197,147.42,147.36,32.41907506]
[1641638017893,8.197,147.42,147.38,4.75428506]
[1641638018093,4.0,147.43,147.38,4.75428506]
[1641638018293,1.696,147.45,147.38,11.53095975]
[1641638018494,55.32958,147.46,147.38,11.53095975]
[1641638018695,27.66479,147.46,147.38,11.53095975]
[1641638018994,1.695,147.47,147.38,4.75428506]
[1641638019194,4.0,147.49,147.4,6.7755268]
[1641638019799,4.0,147.49,147.43,6.7743793]
[1641638020297,4.0,147.49,147.44,6.36134685]
[1641638021301,4.0,147.49,147.46,4.75428506]
[1641638021698,4.0,147.48,147.46,4.75428506]
[1641638021899,5.695,147.49,147.46,4.75428506]
[1641638022098,1.695,147.49,147.46,4.75428506]
[1641638022901,1.695,147.49,147.48,4.75428506]
[1641638023105,31.66479,147.5,147.48,4.75428506]
[1641638023501,4.0,147.49,147.48,4.75428506]
[1641638023700,5.695,147.49,147.44,1.60706179]
[1641638023901,4.0,147.49,147.44,1.60706179]
[1641638024502,4.0,147.49,147.43,9.06933506]
[1641638024703,31.66479,147.5,147.43,9.06933506]
[1641638024903,27.66479,147.5,147.43,15.8434849]
[1641638025102,27.66479,147.5,147.46,14.37195638]
[1641638026604,27.66479,147.5,147.45,14.37195638]
[1641638026804,31.66479,147.5,147.45,14.37195638]
[1641638027204,27.66479,147.5,147.45,14.37195638]
[1641638027408,27.66479,147.5,147.44,15.97901817]
[1641638028306,27.66479,147.5,147.45,14.37195638]
[1641638029509,13.96,147.52,147.45,14.37195638]
[1641638030111,4.0,147.51,147.45,14.37195638]
[1641638030313,5.695,147.51,147.45,14.37195638]
[1641638031113,5.695,147.51,147.44,15.97901817]
[1641638031612,4.0,147.49,147.44,15.97901817]
[1641638032517,1.695,147.51,147.44,15.97901817]
[1641638032713,1.695,147.51,147.44,22.75270915]
[1641638032916,1.695,147.51,147.44,8.38075277]
[1641638033818,1.695,147.51,147.45,1.60706179]
[1641638034619,5.695,147.51,147.45,1.60706179]
[1641638035119,4.0,147.49,147.45,1.60706179]
[1641638035319,10.831,147.49,147.45,1.60706179]
[1641638035518,6.831,147.49,147.45,15.97901817]
[1641638036319,6.831,147.49,147.45,1.60706179]
[1641638037222,6.831,147.49,147.44,14.37195638]
[1641638037922,6.831,147.49,147.43,1.60706179]
[1641638038224,4.0,147.48,147.43,1.60706179]
[1641638038820,4.0,147.48,147.42,23.48709361]
[1641638039524,4.0,147.48,147.46,4.7906003]
[1641638040223,4.0,147.47,147.46,4.7906003]
[1641638040422,36.19079,147.49,147.46,0.0001003]
[1641638040621,4.0,147.47,147.46,0.0001003]
[1641638041123,4.0,147.47,147.42,23.48709361]
[1641638041323,4.0,147.47,147.41,14.37195638]
[1641638041824,56.19079,147.49,147.41,14.37195638]
[1641638041825,60.19079,147.49,147.41,14.37195638]
[1641638042427,5.42450671,147.48,147.41,14.37195638]
[1641638042626,1.695,147.47,147.41,14.37195638]
[1641638042827,1.695,147.47,147.4,23.48709361]
[1641638044028,5.695,147.47,147.4,23.48709361]
[1641638044528,1.695,147.47,147.4,23.48709361]
[1641638044930,27.66479,147.46,147.4,23.48709361]
[1641638045134,35.53179,147.46,147.4,23.48709361]
[1641638046131,35.53179,147.46,147.41,14.37195638]
[1641638048134,35.53179,147.46,147.42,14.37195638]
[1641638048734,35.53179,147.46,147.43,14.37195638]
[1641638050842,7.867,147.46,147.43,14.37195638]
[1641638051039,11.11950671,147.48,147.43,14.37195638]
[1641638052241,21.09950671,147.48,147.43,14.37195638]
[1641638054645,17.09950671,147.48,147.43,14.37195638]
[1641638055645,11.675,147.48,147.43,14.37195638]
[1641638055845,9.98,147.48,147.43,14.37195638]
[1641638057146,27.66479,147.49,147.43,14.37195638]
[1641638063552,19.96782604,147.49,147.43,14.37195638]
[1641638064754,19.96782604,147.49,147.43,21.14633568]
[1641638065053,19.96782604,147.49,147.44,14.37195638]
[1641638065755,19.96782604,147.49,147.47,14.37195638]
[1641638065955,27.66479,147.51,147.47,14.37195638]
[1641638066156,9.96,147.52,147.47,14.37195638]
[1641638067556,9.96,147.52,147.46,14.37195638]
[1641638067955,13.96,147.52,147.46,14.37195638]
[1641638068155,4.0,147.51,147.46,14.37195638]
[1641638068355,5.695,147.51,147.46,14.37195638]
[1641638068555,4.0,147.48,147.46,14.37195638]
[1641638068756,10.277,147.48,147.45,9.11513723]
[1641638068956,7.972,147.48,147.45,9.11513723]
[1641638069257,6.277,147.48,147.45,9.11513723]
[1641638069656,6.277,147.48,147.45,1.60706179]
[1641638069855,6.277,147.48,147.44,1.60706179]
[1641638073659,27.66479,147.49,147.44,1.60706179]
[1641638074262,4.0,147.48,147.44,1.60706179]
[1641638074559,47.66479,147.49,147.44,1.60706179]
[1641638074560,27.66479,147.49,147.44,1.60706179]
[1641638074760,1.695,147.48,147.44,1.60706179]
[1641638076464,29.35979,147.49,147.44,1.60706179]
[1641638076664,27.66479,147.49,147.44,1.60706179]
[1641638077964,27.66479,147.49,147.44,9.12719821]
[1641638078566,27.66479,147.49,147.44,15.90111862]
[1641638080370,27.66479,147.49,147.45,1.60706179]
[1641638080669,9.96,147.52,147.45,1.60706179]
[1641638080869,4.0,147.51,147.45,1.60706179]
[1641638081069,41.115,147.52,147.45,1.60706179]
[1641638081270,1.695,147.51,147.45,1.60706179]
[1641638082071,1.695,147.51,147.44,9.12719821]
[1641638082269,17.115,147.52,147.44,9.12719821]
[1641638083973,17.115,147.52,147.44,47.15318015]
[1641638084972,9.96,147.52,147.44,47.15318015]
[1641638086072,9.96,147.52,147.45,6.77323219]
[1641638086775,9.96,147.52,147.46,1.60706179]
[1641638087678,33.96,147.52,147.46,1.60706179]
[1641638087874,1.695,147.51,147.46,1.60706179]
[1641638088476,1.695,147.51,147.44,15.90111862]
[1641638088675,11.655,147.52,147.44,15.90111862]
[1641638089276,11.655,147.52,147.45,1.60706179]
[1641638093884,4.0,147.51,147.45,1.60706179]
[1641638094182,1.695,147.5,147.45,1.60706179]
[1641638094882,1.695,147.5,147.44,9.12719821]
[1641638099489,29.35979,147.5,147.44,9.12719821]
[1641638100092,27.66479,147.5,147.44,9.12719821]
[1641638101090,34.71779,147.5,147.44,23.51790219]
[1641638101691,34.71779,147.5,147.47,4.79746544]
[1641638103194,34.71779,147.5,147.48,4.79746544]
[1641638104796,7.053,147.5,147.48,4.79746544]
[1641638105297,11.053,147.5,147.49,4.79746544]
[1641638105495,38.71779,147.5,147.46,14.39070398]
[1641638105695,34.71779,147.5,147.46,14.39070398]
[1641638106696,34.71779,147.5,147.44,1.60706179]
[1641638106895,58.71779,147.5,147.44,1.60706179]
[1641638107198,4.0,147.49,147.44,1.60706179]
[1641638107396,1.695,147.48,147.44,1.60706179]
[1641638107596,4.0,147.49,147.44,1.60706179]
[1641638107597,5.695,147.49,147.44,1.60706179]
[1641638108997,1.695,147.49,147.44,1.60706179]
[1641638109297,4.0,147.48,147.44,1.60706179]
[1641638109497,1.695,147.47,147.44,1.60706179]
[1641638109698,27.66479,147.46,147.44,1.60706179]
[1641638109897,27.66479,147.46,147.42,14.39070398]
[1641638110498,27.66479,147.46,147.39,21.90024059]
[1641638111299,27.66479,147.46,147.39,14.39070398]
[1641638111498,27.66479,147.46,147.38,42.05549398]
[1641638112300,27.66479,147.46,147.4,14.39070398]
[1641638114100,27.66479,147.46,147.39,21.89883907]
[1641638114401,34.54479,147.46,147.39,21.89883907]
[1641638114603,54.54479,147.46,147.39,21.89883907]
[1641638115705,54.54479,147.46,147.38,42.05549398]
[1641638115904,56.23979,147.46,147.38,42.05549398]
[1641638116906,60.23979,147.46,147.38,42.05549398]
[1641638117106,56.23979,147.46,147.38,42.05549398]
[1641638117306,60.23979,147.46,147.38,42.05549398]
[1641638117708,27.66479,147.43,147.38,14.39070398]
[1641638118009,34.28879,147.43,147.38,14.39070398]
[1641638118208,34.28879,147.43,147.37,79.61350398]
[1641638124221,34.28879,147.43,147.38,21.89198929]
[1641638124222,26.58964865,147.43,147.38,21.89198929]
[1641638124620,26.58964865,147.43,147.39,14.39070398]
[1641638125420,26.58964865,147.43,147.38,21.89198929]
[1641638125921,19.96564865,147.43,147.38,21.89198929]
[1641638126219,19.96564865,147.43,147.39,14.39070398]
[1641638126621,68.3513,147.45,147.39,14.39070398]
[1641638127321,68.3513,147.45,147.4,14.39070398]
[1641638127521,29.94,147.46,147.4,14.39070398]
[1641638128223,29.94,147.46,147.41,14.39070398]
[1641638129022,9.94,147.46,147.41,14.39070398]
[1641638134028,9.94,147.46,147.42,14.39070398]
[1641638134828,9.94,147.46,147.39,19.56148205]
[1641638135728,9.94,147.46,147.39,12.06019674]
[1641638138428,9.94,147.46,147.39,18.83641222]
[1641638138829,9.94,147.46,147.41,14.40516546]
[1641638139831,9.94,147.46,147.39,6.77621548]
[1641638140436,24.34516546,147.46,147.39,6.77621548]
[1641638141335,26.04016546,147.46,147.39,6.77621548]
[1641638142137,24.0,147.45,147.38,55.32958]
[1641638142436,20.0,147.45,147.38,55.32958]
[1641638142940,34.40516546,147.45,147.38,55.32958]
[1641638148143,20.0,147.45,147.38,55.32958]
[1641638149847,4.0,147.43,147.38,55.32958]
[1641638150349,10.719,147.43,147.38,55.32958]
[1641638150549,12.415,147.43,147.38,55.32958]
[1641638150950,3.18618356,147.42,147.38,55.32958]
[1641638151949,5.696,147.43,147.38,55.32958]
[1641638152251,5.696,147.43,147.39,1.61869321]
[1641638153050,5.696,147.43,147.39,23.54660643]
[1641638154053,5.696,147.43,147.39,1.61869321]
[1641638155155,4.0,147.43,147.39,1.61869321]
[1641638158458,10.579,147.43,147.39,1.61869321]
[1641638159359,25.42685912,147.42,147.39,1.61869321]
[1641638159559,1.696,147.41,147.39,1.61869321]
[1641638159760,20.0,147.42,147.39,1.61869321]
[1641638162261,24.0,147.42,147.39,1.61869321]
[1641638162462,24.0,147.42,147.38,27.66479]
[1641638162662,1.696,147.41,147.38,27.66479]
[1641638165064,24.0,147.42,147.38,27.66479]
[1641638165764,20.0,147.42,147.38,27.66479]
[1641638167068,20.0,147.42,147.38,32.4513323]
[1641638167269,24.0,147.42,147.38,32.4513323]
[1641638167469,20.0,147.42,147.38,32.4513323]
[1641638168369,20.0,147.42,147.38,38.0333323]
[1641638168569,6.4825423,147.43,147.41,4.7865423]
[1641638168771,4.7865423,147.43,147.41,10.4065423]
[1641638169676,4.7865423,147.45,147.42,6.40552775]
[1641638170573,4.7865423,147.45,147.42,4.7865423]
[1641638170774,4.7865423,147.44,147.41,4.7865423]
[1641638171876,4.7865423,147.46,147.42,4.7865423]
[1641638172077,4.7865423,147.46,147.44,27.66479]
[1641638172678,4.7865423,147.48,147.45,4.7865423]
[1641638172878,4.7865423,147.48,147.45,6.4048731]
[1641638173779,4.7865423,147.48,147.45,4.7865423]
[1641638173979,4.7865423,147.5,147.44,32.4513323]
[1641638175081,4.7865423,147.5,147.45,6.40217035]
[1641638176082,4.7865423,147.5,147.45,4.7865423]
[1641638176283,70.2482423,147.51,147.44,32.4513323]
[1641638176481,8.366,147.5,147.44,32.4513323]
[1641638177085,13.1525423,147.5,147.44,27.66479]
[1641638177684,8.366,147.5,147.44,32.4513323]
[1641638178186,12.366,147.5,147.44,32.4513323]
[1641638178992,1.695,147.49,147.44,32.4513323]
[1641638179190,10.061,147.5,147.44,32.4513323]
[1641638179387,10.061,147.5,147.44,27.66479]
[1641638179388,4.7865423,147.49,147.44,27.66479]
[1641638179589,4.7865423,147.49,147.44,31.66479]
[1641638179788,14.40516546,147.53,147.45,6.77323219]
[1641638179990,14.40516546,147.53,147.48,6.77185617]
[1641638180191,14.40516546,147.53,147.52,27.66479]
[1641638180390,10.06,147.57,147.45,1.61270697]
[1641638180591,4.0,147.55,147.47,5.425]
[1641638180789,1.694,147.54,147.47,5.425]
[1641638180990,1.694,147.55,147.47,5.425]
[1641638181190,1.694,147.55,147.47,9.425]
[1641638181794,1.694,147.55,147.47,5.425]
[1641638182196,27.66479,147.51,147.47,5.425]
[1641638182393,27.66479,147.53,147.44,62.7035]
[1641638183492,27.66479,147.53,147.44,66.7035]
[1641638184395,27.66479,147.53,147.44,62.7035]
[1641638185094,19.96922987,147.53,147.44,62.7035]
[1641638186694,1.695,147.52,147.44,62.7035]
[1641638186896,31.974,147.52,147.44,62.7035]
[1641638187096,27.974,147.52,147.44,62.7035]
[1641638191202,31.974,147.52,147.44,62.7035]
[1641638192105,27.974,147.52,147.44,62.7035]
[1641638193006,31.974,147.52,147.44,62.7035]
[1641638193205,27.974,147.52,147.44,62.7035]
[1641638195210,7.974,147.52,147.44,62.7035]
[1641638195411,1.695,147.52,147.44,70.3945]
[1641638195811,59.44901987,147.53,147.44,70.3945]
[1641638196010,57.75401987,147.53,147.44,70.3945]
[1641638198413,57.75401987,147.53,147.45,6.77277345]
[1641638198612,47.63401987,147.53,147.45,6.77277345]
[1641638199015,47.63401987,147.53,147.45,14.27097458]
[1641638200214,47.63401987,147.53,147.45,7.49820113]
[1641638200415,27.66479,147.5,147.45,7.49820113]
[1641638200614,27.66479,147.5,147.44,62.7035]
[1641638209726,29.35979,147.5,147.44,62.7035]
[1641638210330,29.35979,147.5,147.41,45.17315767]
[1641638210531,27.66479,147.47,147.42,66.9963]
[1641638210929,34.26379,147.47,147.42,66.9963]
[1641638211131,34.26379,147.47,147.42,81.40547329]
[1641638212331,34.26379,147.47,147.42,14.40917329]
[1641638212933,34.26379,147.47,147.41,14.40917329]
[1641638213134,27.66479,147.47,147.41,14.40917329]
[1641638213737,27.66479,147.47,147.44,14.40917329]
[1641638214437,27.66479,147.47,147.45,6.77300281]
[1641638214638,27.66479,147.5,147.45,6.77300281]
[1641638215039,14.40917329,147.53,147.45,6.77300281]
[1641638215640,14.40917329,147.53,147.44,20.40717329]
[1641638215842,1.695,147.52,147.48,14.40917329]
[1641638216044,1.694,147.53,147.48,14.40917329]
[1641638216542,27.66479,147.52,147.48,14.40917329]
[1641638217042,27.66479,147.52,147.46,14.40917329]
[1641638217242,25.695,147.51,147.46,14.40917329]
[1641638217643,28.447,147.51,147.46,14.40917329]
[1641638218042,28.447,147.51,147.44,21.92453827]
[1641638219243,4.0,147.47,147.41,38.3985489]
[1641638219444,1.695,147.46,147.41,38.3985489]
[1641638219943,1.695,147.46,147.39,116.0806604]
[1641638220844,1.695,147.46,147.4,1.61588272]
[1641638221045,89.91079,147.47,147.4,1.61588272]
[1641638221644,27.66479,147.47,147.4,1.61588272]
[1641638221845,27.66479,147.47,147.4,52.06406689]
[1641638222449,27.66479,147.47,147.4,40.01443162]
[1641638222647,27.66479,147.47,147.4,1.61588272]
[1641638226147,4.0,147.46,147.4,1.61588272]
[1641638226346,27.66479,147.47,147.4,1.61588272]
[1641638226548,1.695,147.48,147.4,1.61588272]
[1641638226549,1.695,147.46,147.41,27.66479]
[1641638226748,10.08,147.48,147.41,38.43939877]
[1641638226948,1.695,147.51,147.44,6.77346158]
[1641638227149,1.695,147.53,147.44,12.53146158]
[1641638227350,102.9944489,147.54,147.44,12.53146158]
[1641638227548,101.2994489,147.54,147.45,4.0]
[1641638227748,101.2994489,147.54,147.45,67.5315]
[1641638227950,1.695,147.56,147.45,71.5315]
[1641638228351,1.695,147.56,147.48,6.77162688]
[1641638228550,66.0633389,147.57,147.49,27.66479]
[1641638228950,38.3985489,147.57,147.52,6.76956404]
[1641638229155,38.3985489,147.57,147.52,15.20856404]
[1641638229351,27.66479,147.59,147.52,15.20856404]
[1641638230453,12.054,147.61,147.52,42.87335404]
[1641638230855,12.054,147.61,147.53,1.61588272]
[1641638232257,1.694,147.61,147.53,1.61588272]
[1641638232456,1.694,147.61,147.6,27.66479]
[1641638232655,38.3985489,147.67,147.6,35.13679]
[1641638232855,38.3985489,147.69,147.61,4.0]
[1641638233056,31.3985489,147.69,147.6,35.13679]
[1641638233255,31.3985489,147.69,147.65,6.76361177]
[1641638233456,31.3985489,147.69,147.65,15.29561177]
[1641638234156,0.16324609,147.71,147.63,6.76475562]
[1641638234357,0.16324609,147.71,147.61,1.61588272]
[1641638234555,29.35779,147.7,147.61,1.61588272]
[1641638235159,38.12179,147.7,147.61,1.61588272]
[1641638235358,38.12179,147.7,147.6,89.83359]
[1641638236558,27.66479,147.67,147.6,89.83359]
[1641638236760,33.99879,147.67,147.6,27.66479]
[1641638236963,6.334,147.67,147.6,27.66479]
[1641638237760,29.35779,147.7,147.6,27.66479]
[1641638237960,29.35779,147.7,147.62,6.76498444]
[1641638238161,27.66479,147.7,147.62,6.76498444]
[1641638239064,29.35779,147.7,147.62,6.76498444]
[1641638239364,29.35779,147.7,147.6,35.88879]
[1641638240768,27.66479,147.7,147.62,6.76498444]
[1641638240966,1.85624609,147.71,147.66,6.76315434]
[1641638241169,0.16324609,147.71,147.66,13.99415434]
[1641638242067,0.16324609,147.71,147.66,7.231]
[1641638242265,0.16324609,147.71,147.63,4.0]
[1641638242467,0.16324609,147.71,147.62,6.76498444]
[1641638242668,0.16324609,147.71,147.64,27.66479]
[1641638243671,0.16324609,147.71,147.62,6.76498444]
[1641638244473,0.16324609,147.71,147.65,4.0]
[1641638244675,0.16324609,147.71,147.64,27.66479]
[1641638244874,5.85324609,147.71,147.64,27.66479]
[1641638245775,5.69,147.71,147.64,27.66479]
[1641638245974,3.80685257,147.71,147.64,27.66479]
[1641638246175,27.66479,147.72,147.64,27.66479]
[1641638246575,27.66479,147.72,147.64,34.42885926]
[1641638246977,27.66479,147.74,147.67,4.0]
[1641638247178,27.66479,147.74,147.67,6.956]
[1641638247676,20.0,147.73,147.63,22.28479]
[1641638247877,1.692,147.72,147.63,22.28479]
[1641638248076,1.692,147.73,147.63,33.04931682]
[1641638248276,27.66479,147.74,147.64,4.0]
[1641638248679,27.66479,147.74,147.63,29.04931682]
[1641638249683,34.42679,147.74,147.63,29.04931682]
[1641638249881,34.42679,147.74,147.63,33.04931682]
[1641638250481,34.42679,147.74,147.64,4.0]
[1641638250883,27.66479,147.76,147.66,6.76338304]
[1641638251082,27.66479,147.76,147.68,6.7624683]
[1641638251882,72.9598,147.78,147.68,6.7624683]
[1641638252085,10.26,147.78,147.68,6.7624683]
[1641638252783,37.92479,147.78,147.68,6.7624683]
[1641638253585,4.0,147.77,147.67,33.21979]
[1641638253786,67.48779,147.78,147.67,27.66479]
[1641638253984,65.79579,147.78,147.67,27.66479]
[1641638254186,50.53547099,147.78,147.67,27.66479]
[1641638254987,32.40447099,147.78,147.67,33.57579]
[1641638255186,32.40447099,147.78,147.7,4.0]
[1641638255386,32.40447099,147.78,147.7,10.242]
[1641638255586,32.40447099,147.78,147.7,6.242]
[1641638255985,27.66479,147.78,147.7,6.242]
[1641638256386,27.66479,147.78,147.67,44.33871564]
[1641638256785,27.66479,147.78,147.7,27.66479]
[1641638257687,32.40447099,147.78,147.7,27.66479]
[1641638258488,32.40447099,147.78,147.7,34.92379]
[1641638258689,4.73968099,147.78,147.7,34.92379]
[1641638259090,4.73968099,147.77,147.73,6.75995403]
[1641638260091,4.73968099,147.77,147.7,34.92379]
[1641638260294,8.742,147.78,147.7,34.42634381]
[1641638260490,8.742,147.78,147.72,6.76041103]
[1641638260991,27.66479,147.77,147.72,6.76041103]
[1641638261391,8.742,147.78,147.72,6.76041103]
[1641638261592,32.40447099,147.79,147.72,6.76041103]
[1641638262395,27.66479,147.79,147.72,6.76041103]
[1641638263195,4.73968099,147.78,147.72,6.76041103]
[1641638263896,42.00047099,147.79,147.72,6.76041103]
[1641638264096,38.00047099,147.79,147.72,6.76041103]
[1641638264697,4.0,147.77,147.7,32.40447099]
[1641638264897,4.0,147.75,147.68,4.73968099]
[1641638265098,4.0,147.74,147.68,4.73968099]
[1641638265298,5.692,147.74,147.68,4.73968099]
[1641638265498,1.692,147.74,147.68,4.73968099]
[1641638265896,4.0,147.71,147.65,11.5035215]
[1641638266097,11.051,147.71,147.65,11.5035215]
[1641638266498,4.0,147.69,147.65,4.73968099]
[1641638266898,27.66479,147.68,147.64,4.73968099]
[1641638267099,35.71979,147.68,147.64,4.73968099]
[1641638268100,35.71979,147.68,147.63,4.73968099]
[1641638268900,8.055,147.68,147.63,4.73968099]
[1641638269301,8.055,147.68,147.64,4.73968099]
[1641638271201,39.45547099,147.71,147.64,4.73968099]
[1641638271701,43.45547099,147.71,147.64,4.73968099]
[1641638271901,39.45547099,147.71,147.64,4.73968099]
[1641638272501,39.45547099,147.71,147.64,12.04068099]
[1641638272701,4.73968099,147.71,147.64,12.04068099]
[1641638272902,4.73968099,147.71,147.67,6.76292564]
[1641638273101,4.73968099,147.71,147.67,12.61792564]
[1641638273502,4.73968099,147.71,147.68,6.76223965]
[1641638273703,4.73968099,147.75,147.68,13.11435654]
[1641638273905,4.73968099,147.75,147.68,19.41735654]
[1641638274703,4.0,147.76,147.7,4.73968099]
[1641638274904,27.66479,147.75,147.7,4.73968099]
[1641638275303,34.87679,147.75,147.7,4.73968099]
[1641638275503,38.87679,147.75,147.7,4.73968099]
[1641638275703,4.0,147.74,147.68,4.73968099]
[1641638275906,1.692,147.73,147.68,4.73968099]
[1641638276103,1.692,147.74,147.68,4.73968099]
[1641638276603,4.73968099,147.71,147.65,4.73968099]
[1641638277405,10.58068099,147.72,147.66,4.73968099]
[1641638278505,10.58068099,147.72,147.65,4.73968099]
[1641638278904,38.24547099,147.72,147.65,4.73968099]
[1641638279304,33.50579,147.72,147.66,4.73968099]
[1641638280505,33.50579,147.72,147.64,1.6137]
[1641638280506,38.24547099,147.72,147.65,4.73968099]
[1641638281406,38.24547099,147.72,147.64,6.35338099]
[1641638281607,4.73968099,147.71,147.64,6.35338099]
[1641638283011,27.66479,147.68,147.67,4.0]
[1641638283210,27.66479,147.68,147.64,13.11767902]
[1641638283416,4.73968099,147.71,147.64,4.73968099]
[1641638283618,13.24968099,147.71,147.64,4.73968099]
[1641638284619,8.51,147.71,147.64,4.73968099]
[1641638284821,32.40447099,147.72,147.64,4.73968099]
[1641638286023,36.40447099,147.72,147.65,4.73968099]
[1641638286225,32.40447099,147.72,147.65,4.73968099]
[1641638286826,27.66479,147.72,147.65,4.73968099]
[1641638287827,4.73968099,147.7,147.63,4.73968099]
[1641638288526,4.73968099,147.7,147.65,6.76384051]
[1641638288927,4.73968099,147.7,147.65,34.42863051]
[1641638289327,4.73968099,147.73,147.66,6.35272983]
[1641638291529,4.73968099,147.72,147.65,32.40447099]
[1641638292329,4.73968099,147.71,147.65,32.40447099]
[1641638293028,4.73968099,147.71,147.67,4.0]
[1641638293231,4.73968099,147.71,147.67,6.525]
[1641638294030,4.73968099,147.71,147.68,4.0]
[1641638294230,4.78844293,147.73,147.69,4.73968099]
[1641638294531,41.85586172,147.77,147.71,6.7608681]
[1641638294730,14.19107172,147.77,147.71,12.6348681]
[1641638295030,14.19107172,147.77,147.73,27.66479]
[1641638295230,18.19107172,147.77,147.73,27.66479]
[1641638295431,9.94,147.79,147.72,1.61626444]
[1641638295630,9.94,147.79,147.7,6.76155381]
[1641638296533,24.13107172,147.79,147.7,6.76155381]
[1641638297131,24.13107172,147.79,147.7,34.42634381]
[1641638297931,4.0,147.77,147.7,34.42634381]
[1641638298134,24.13107172,147.79,147.7,34.42634381]
[1641638298331,28.13107172,147.79,147.7,34.42634381]
[1641638298632,4.0,147.77,147.7,27.66479]
[1641638298831,7.422,147.77,147.7,27.66479]
[1641638299031,27.66479,147.75,147.68,94.67259]
[1641638299831,14.19107172,147.76,147.68,94.67259]
[1641638301033,27.66479,147.75,147.68,94.67259]
[1641638301235,4.0,147.74,147.68,94.67259]
[1641638301434,31.66479,147.75,147.68,27.66479]
[1641638301834,31.66479,147.75,147.66,20.95422606]
[1641638302234,31.66479,147.75,147.66,6.76315434]
[1641638302534,27.66479,147.75,147.66,6.76315434]
[1641638303935,31.66479,147.75,147.66,6.76315434]
[1641638304535,27.66479,147.75,147.66,6.76315434]
[1641638304736,45.85586172,147.75,147.66,6.76315434]
[1641638304936,4.0,147.74,147.66,6.76315434]
[1641638305140,27.66479,147.72,147.66,6.76315434]
[1641638305537,27.66479,147.72,147.65,27.66479]
[1641638306436,19.97811682,147.72,147.65,27.66479]
[1641638307136,19.97811682,147.72,147.65,31.66479]
[1641638307338,19.97811682,147.72,147.65,27.66479]
[1641638309040,19.97811682,147.72,147.67,6.76292564]
[1641638309642,27.66479,147.75,147.67,6.76292564]
[1641638310642,47.66479,147.75,147.66,21.69097441]
[1641638310843,1.692,147.74,147.66,21.69097441]
[1641638311844,1.692,147.74,147.66,14.19107172]
[1641638312045,1.692,147.74,147.65,27.66479]
[1641638312244,61.02158,147.75,147.65,27.66479]
[1641638312444,57.02158,147.75,147.65,27.66479]
[1641638312743,61.02158,147.75,147.65,41.85586172]
[1641638312943,57.02158,147.75,147.65,41.85586172]
[1641638313345,61.02158,147.75,147.65,41.85586172]
[1641638313747,61.02158,147.75,147.65,27.66479]
[1641638314547,57.02158,147.75,147.65,34.06379]
[1641638314746,57.02158,147.75,147.65,40.82740177]
[1641638315348,61.02158,147.75,147.65,40.82740177]
[1641638315748,75.21265172,147.75,147.65,40.82740177]
[1641638315950,4.0,147.71,147.65,40.82740177]
[1641638316150,4.0,147.72,147.65,34.06379]
[1641638316355,4.0,147.71,147.65,34.06379]
[1641638316553,4.0,147.71,147.65,27.66479]
[1641638316953,4.0,147.72,147.65,27.66479]
[1641638317156,27.66479,147.71,147.64,80.09257172]
[1641638317557,27.66479,147.71,147.64,65.9015]
[1641638318154,4.0,147.68,147.62,14.19107172]
[1641638318557,4.0,147.67,147.62,14.19107172]
[1641638318757,6.824,147.68,147.62,14.19107172]
[1641638318958,6.824,147.68,147.61,21.69655432]
[1641638319258,34.48879,147.68,147.61,21.69655432]
[1641638319960,34.48879,147.68,147.59,41.85586172]
[1641638320861,34.48879,147.68,147.6,21.69655432]
[1641638321059,34.48879,147.68,147.6,33.88245418]
[1641638321860,34.48879,147.68,147.61,14.19107172]
[1641638323062,6.824,147.68,147.61,14.19107172]
[1641638323361,27.66479,147.71,147.63,27.66479]
[1641638323560,27.66479,147.71,147.63,42.17031682]